[Event "Late-Titled-Tuesday-Blitz-May-14-2024"]
[Site "Chess.com"]
[Date "2024.05.14"]
[Round "5"]
[White "geordie_derraugh"]
[Black "Stanbad1"]
[Result "1-0"]
[WhiteElo "2499"]
[BlackElo "2604"]
[TimeControl "180+1"]
[EndTime "14:50:46 PDT"]
[Termination "geordie_derraugh won by checkmate"]

1. e4 {[%clk 0:03:00.9]} 1... e6 {[%clk 0:02:59]} 2. d4 {[%clk 0:03:00.5]} 2...
d5 {[%clk 0:02:59.6]} 3. Nc3 {[%clk 0:02:57.6]} 3... Nf6 {[%clk 0:02:59.2]} 4.
e5 {[%clk 0:02:57.5]} 4... Nfd7 {[%clk 0:02:59.1]} 5. Nce2 {[%clk 0:02:58.2]}
5... Be7 {[%clk 0:02:57.2]} 6. c3 {[%clk 0:02:57.1]} 6... c5 {[%clk 0:02:57]} 7.
Nf3 {[%clk 0:02:57]} 7... O-O {[%clk 0:02:55.8]} 8. a3 {[%clk 0:02:57.4]} 8...
Nc6 {[%clk 0:02:54.7]} 9. Nf4 {[%clk 0:02:57.5]} 9... cxd4 {[%clk 0:02:50.3]}
10. cxd4 {[%clk 0:02:57.4]} 10... a5 {[%clk 0:02:50.9]} 11. Bd3 {[%clk
0:02:57.2]} 11... a4 {[%clk 0:02:50.9]} 12. h4 {[%clk 0:02:56.3]} 12... Nb6
{[%clk 0:02:51.3]} 13. Bxh7+ {[%clk 0:02:49.5]} 13... Kxh7 {[%clk 0:02:49.8]}
14. Ng5+ {[%clk 0:02:49.3]} 14... Kg8 {[%clk 0:02:47.7]} 15. Qh5 {[%clk
0:02:47.1]} 15... Re8 {[%clk 0:01:46.1]} 16. Qxf7+ {[%clk 0:02:43.6]} 16... Kh8
{[%clk 0:01:46.3]} 17. Ng6# {[%clk 0:02:43.7]} 1-0

[Event "Late-Titled-Tuesday-Blitz-May-14-2024"]
[Site "Chess.com"]
[Date "2024.05.14"]
[Round "5"]
[White "GiorgianBarbosa"]
[Black "PhileKhoob"]
[Result "1-0"]
[WhiteElo "2518"]
[BlackElo "2336"]
[TimeControl "180+1"]
[EndTime "14:51:07 PDT"]
[Termination "GiorgianBarbosa won by resignation"]

1. c4 {[%clk 0:02:59.3]} 1... c6 {[%clk 0:02:57.2]} 2. g3 {[%clk 0:03:00.2]}
2... d5 {[%clk 0:02:57]} 3. cxd5 {[%clk 0:03:00.6]} 3... cxd5 {[%clk 0:02:57.5]}
4. Bg2 {[%clk 0:03:01.5]} 4... Nc6 {[%clk 0:02:57.8]} 5. Nf3 {[%clk 0:03:02.4]}
5... Nf6 {[%clk 0:02:58.1]} 6. O-O {[%clk 0:03:01.2]} 6... Bf5 {[%clk
0:02:58.6]} 7. d4 {[%clk 0:03:01.5]} 7... h6 {[%clk 0:02:58.8]} 8. Ne5 {[%clk
0:03:01.6]} 8... Rc8 {[%clk 0:02:55.9]} 9. Nc3 {[%clk 0:02:59.4]} 9... e6 {[%clk
0:02:54.6]} 10. Qa4 {[%clk 0:02:58.9]} 10... a6 {[%clk 0:02:51.8]} 11. Bf4
{[%clk 0:02:54.6]} 11... Bd6 {[%clk 0:02:47.4]} 12. Rfc1 {[%clk 0:02:49]} 12...
O-O {[%clk 0:02:45.2]} 13. h3 {[%clk 0:02:32.8]} 13... Nh5 {[%clk 0:02:25.6]}
14. Nxc6 {[%clk 0:02:22]} 14... Rxc6 {[%clk 0:02:22.6]} 15. Bxd6 {[%clk
0:02:22.1]} 15... Qxd6 {[%clk 0:02:21.7]} 16. g4 {[%clk 0:02:22.5]} 16... Nf4
{[%clk 0:02:19.5]} 17. gxf5 {[%clk 0:02:21.9]} 17... b5 {[%clk 0:02:17]} 18. Qd1
{[%clk 0:02:20.8]} 18... b4 {[%clk 0:02:16.9]} 19. Na4 {[%clk 0:02:19.9]} 19...
Rxc1 {[%clk 0:02:15.1]} 20. Rxc1 {[%clk 0:02:20.8]} 20... Nxe2+ {[%clk
0:02:15.5]} 21. Qxe2 {[%clk 0:02:18.6]} 1-0

[Event "Late-Titled-Tuesday-Blitz-May-14-2024"]
[Site "Chess.com"]
[Date "2024.05.14"]
[Round "5"]
[White "ferrufino64"]
[Black "amylazy"]
[Result "1-0"]
[WhiteElo "2317"]
[BlackElo "2451"]
[TimeControl "180+1"]
[EndTime "14:51:27 PDT"]
[Termination "ferrufino64 won by resignation"]

1. e4 {[%clk 0:03:00.1]} 1... c5 {[%clk 0:02:59.4]} 2. Nf3 {[%clk 0:03:00]} 2...
e6 {[%clk 0:02:59.4]} 3. d4 {[%clk 0:02:57.7]} 3... cxd4 {[%clk 0:03:00.3]} 4.
Nxd4 {[%clk 0:02:58.6]} 4... a6 {[%clk 0:02:59.2]} 5. Nc3 {[%clk 0:02:57.9]}
5... Qc7 {[%clk 0:02:40.9]} 6. a3 {[%clk 0:02:57.2]} 6... b6 {[%clk 0:02:37]} 7.
Be3 {[%clk 0:02:56.3]} 7... Bb7 {[%clk 0:02:37.9]} 8. f3 {[%clk 0:02:56.3]} 8...
Nf6 {[%clk 0:02:35.4]} 9. g4 {[%clk 0:02:56.5]} 9... d5 {[%clk 0:02:35.2]} 10.
g5 {[%clk 0:02:56.4]} 10... Nfd7 {[%clk 0:02:35.5]} 11. exd5 {[%clk 0:02:56.6]}
11... exd5 {[%clk 0:02:36.3]} 12. Qd2 {[%clk 0:02:56.5]} 12... Nc6 {[%clk
0:02:36.2]} 13. O-O-O {[%clk 0:02:55.3]} 13... Nxd4 {[%clk 0:02:34.8]} 14. Bxd4
{[%clk 0:02:55.1]} 14... Be7 {[%clk 0:02:30.9]} 15. Re1 {[%clk 0:02:55.1]} 15...
Kf8 {[%clk 0:02:30.6]} 16. Bh3 {[%clk 0:02:36.3]} 16... Re8 {[%clk 0:02:29.8]}
17. Bxd7 {[%clk 0:02:30.7]} 17... Qxd7 {[%clk 0:02:25.8]} 18. Bxb6 {[%clk
0:02:30.9]} 18... h6 {[%clk 0:02:20.9]} 19. h4 {[%clk 0:02:24.3]} 19... d4
{[%clk 0:02:15.9]} 20. Bxd4 {[%clk 0:02:22]} 20... Bxf3 {[%clk 0:02:15.3]} 21.
Bxg7+ {[%clk 0:02:21.9]} 21... Kxg7 {[%clk 0:02:13.9]} 22. Qxd7 {[%clk
0:02:22.1]} 22... Bxh1 {[%clk 0:02:12.7]} 23. gxh6+ {[%clk 0:02:15.6]} 23...
Rxh6 {[%clk 0:02:12.4]} 24. Qxe8 {[%clk 0:02:13.7]} 24... Bxh4 {[%clk 0:02:11]}
25. Rg1+ {[%clk 0:02:05.8]} 1-0

[Event "Late-Titled-Tuesday-Blitz-May-14-2024"]
[Site "Chess.com"]
[Date "2024.05.14"]
[Round "5"]
[White "Veleamater"]
[Black "PawnEatingZombie"]
[Result "0-1"]
[WhiteElo "2430"]
[BlackElo "2312"]
[TimeControl "180+1"]
[EndTime "14:51:46 PDT"]
[Termination "PawnEatingZombie won by resignation"]

1. Nf3 {[%clk 0:03:00.9]} 1... Nf6 {[%clk 0:02:57.5]} 2. g3 {[%clk 0:03:01.8]}
2... g6 {[%clk 0:02:57.4]} 3. Bg2 {[%clk 0:03:02.2]} 3... Bg7 {[%clk 0:02:58.1]}
4. O-O {[%clk 0:03:01.3]} 4... O-O {[%clk 0:02:58.6]} 5. d3 {[%clk 0:03:01.8]}
5... c5 {[%clk 0:02:56]} 6. c4 {[%clk 0:03:01.8]} 6... Nc6 {[%clk 0:02:56.3]} 7.
Nc3 {[%clk 0:03:02.1]} 7... d5 {[%clk 0:02:54]} 8. e4 {[%clk 0:02:59.5]} 8...
dxc4 {[%clk 0:02:48.1]} 9. dxc4 {[%clk 0:02:59.6]} 9... Qxd1 {[%clk 0:02:39.4]}
10. Rxd1 {[%clk 0:02:59.4]} 10... Bg4 {[%clk 0:02:40.1]} 11. h3 {[%clk
0:02:54.5]} 11... Bxf3 {[%clk 0:02:40.2]} 12. Bxf3 {[%clk 0:02:55]} 12... Nd4
{[%clk 0:02:35.1]} 13. Bg2 {[%clk 0:02:55.2]} 13... Nd7 {[%clk 0:02:28]} 14. f4
{[%clk 0:02:35.4]} 14... e6 {[%clk 0:02:26.7]} 15. e5 {[%clk 0:02:33.4]} 15...
Rab8 {[%clk 0:02:22]} 16. Nb5 {[%clk 0:02:32.5]} 16... Nxb5 {[%clk 0:01:40]} 17.
Rxd7 {[%clk 0:02:31.5]} 17... Nd4 {[%clk 0:01:40]} 18. Rxb7 {[%clk 0:02:13.3]}
18... Rxb7 {[%clk 0:01:39.8]} 19. Rb1 {[%clk 0:02:09.9]} 19... Rbb8 {[%clk
0:01:32.5]} 0-1

[Event "Late-Titled-Tuesday-Blitz-May-14-2024"]
[Site "Chess.com"]
[Date "2024.05.14"]
[Round "5"]
[White "picturesquecheck"]
[Black "Meri-Arabidze"]
[Result "0-1"]
[WhiteElo "2470"]
[BlackElo "2688"]
[TimeControl "180+1"]
[EndTime "14:52:01 PDT"]
[Termination "Meri-Arabidze won by resignation"]

1. e4 {[%clk 0:02:57]} 1... c5 {[%clk 0:03:00.1]} 2. Nf3 {[%clk 0:02:56.4]} 2...
e6 {[%clk 0:03:00.7]} 3. g3 {[%clk 0:02:55.1]} 3... Nc6 {[%clk 0:03:00.6]} 4.
Bg2 {[%clk 0:02:55.3]} 4... Nf6 {[%clk 0:03:01.2]} 5. d3 {[%clk 0:02:54.9]} 5...
d5 {[%clk 0:03:01.3]} 6. Nbd2 {[%clk 0:02:54.3]} 6... Be7 {[%clk 0:03:01.2]} 7.
O-O {[%clk 0:02:54.6]} 7... O-O {[%clk 0:03:01.2]} 8. Re1 {[%clk 0:02:54.6]}
8... b5 {[%clk 0:03:01.2]} 9. e5 {[%clk 0:02:49.3]} 9... Ne8 {[%clk 0:03:01.1]}
10. h4 {[%clk 0:02:47.8]} 10... Nc7 {[%clk 0:03:01.5]} 11. Nf1 {[%clk
0:02:47.3]} 11... f5 {[%clk 0:02:58]} 12. exf6 {[%clk 0:02:46.7]} 12... Bxf6
{[%clk 0:02:58.3]} 13. N1h2 {[%clk 0:02:45.8]} 13... Qd6 {[%clk 0:02:58.4]} 14.
Ng4 {[%clk 0:02:45.5]} 14... e5 {[%clk 0:02:58.8]} 15. Nxf6+ {[%clk 0:02:44.7]}
15... Qxf6 {[%clk 0:02:59.2]} 16. Qe2 {[%clk 0:02:42]} 16... Bg4 {[%clk
0:02:55.1]} 17. Bg5 {[%clk 0:02:23.7]} 17... Bxf3 {[%clk 0:02:32.8]} 18. Qe3
{[%clk 0:02:20.6]} 18... Qf7 {[%clk 0:02:26]} 19. Bxf3 {[%clk 0:02:08.8]} 19...
Qxf3 {[%clk 0:02:26.1]} 20. Qxc5 {[%clk 0:02:08.9]} 20... Nd4 {[%clk 0:02:14.7]}
21. Be3 {[%clk 0:01:58.6]} 21... Nce6 {[%clk 0:02:14.7]} 22. Qd6 {[%clk
0:01:56.6]} 22... Qf7 {[%clk 0:01:56.3]} 23. Rac1 {[%clk 0:01:40]} 23... Nf3+
{[%clk 0:01:55]} 0-1

[Event "Late-Titled-Tuesday-Blitz-May-14-2024"]
[Site "Chess.com"]
[Date "2024.05.14"]
[Round "5"]
[White "angelgab3"]
[Black "vugarrasulov"]
[Result "0-1"]
[WhiteElo "2717"]
[BlackElo "2963"]
[TimeControl "180+1"]
[EndTime "14:52:26 PDT"]
[Termination "vugarrasulov won by resignation"]

1. e4 {[%clk 0:03:00.9]} 1... g6 {[%clk 0:03:00.9]} 2. d4 {[%clk 0:03:00.4]}
2... Nf6 {[%clk 0:03:00.4]} 3. Nc3 {[%clk 0:02:58.4]} 3... d5 {[%clk 0:03:00.2]}
4. e5 {[%clk 0:02:58.2]} 4... Ne4 {[%clk 0:03:00.5]} 5. Bd3 {[%clk 0:02:58.4]}
5... Nxc3 {[%clk 0:02:59.5]} 6. bxc3 {[%clk 0:02:59.3]} 6... c5 {[%clk
0:02:59.8]} 7. Nf3 {[%clk 0:02:57.5]} 7... Bg4 {[%clk 0:02:56.8]} 8. h3 {[%clk
0:02:49.9]} 8... Bxf3 {[%clk 0:02:57]} 9. Qxf3 {[%clk 0:02:50.8]} 9... e6 {[%clk
0:02:57.1]} 10. h4 {[%clk 0:02:35]} 10... Nc6 {[%clk 0:02:49]} 11. Be3 {[%clk
0:02:16.7]} 11... h5 {[%clk 0:02:42.6]} 12. Rb1 {[%clk 0:02:10.5]} 12... Qc7
{[%clk 0:02:36.7]} 13. g4 {[%clk 0:01:43.5]} 13... hxg4 {[%clk 0:02:32.7]} 14.
Qxg4 {[%clk 0:01:44.4]} 14... O-O-O {[%clk 0:02:30.7]} 15. h5 {[%clk 0:01:40.7]}
15... Be7 {[%clk 0:02:22.4]} 16. h6 {[%clk 0:01:31.8]} 16... Rh7 {[%clk
0:02:14.5]} 17. Ke2 {[%clk 0:01:21.3]} 17... Rdh8 {[%clk 0:02:06.1]} 18. Bxg6
{[%clk 0:00:59.4]} 18... Rg8 {[%clk 0:01:59.5]} 19. Qxe6+ {[%clk 0:01:00.3]}
19... fxe6 {[%clk 0:01:58.8]} 0-1

[Event "Late-Titled-Tuesday-Blitz-May-14-2024"]
[Site "Chess.com"]
[Date "2024.05.14"]
[Round "5"]
[White "Sacbutt"]
[Black "Nor1lsk"]
[Result "0-1"]
[WhiteElo "2366"]
[BlackElo "2789"]
[TimeControl "180+1"]
[EndTime "14:52:51 PDT"]
[Termination "Nor1lsk won by resignation"]

1. d4 {[%clk 0:03:00.9]} 1... g6 {[%clk 0:02:59.3]} 2. c4 {[%clk 0:02:56.9]}
2... Bg7 {[%clk 0:02:59.6]} 3. Nc3 {[%clk 0:02:57.2]} 3... c5 {[%clk 0:02:59.9]}
4. e3 {[%clk 0:02:54.8]} 4... Nf6 {[%clk 0:02:59.7]} 5. Nf3 {[%clk 0:02:54.8]}
5... O-O {[%clk 0:03:00.2]} 6. Be2 {[%clk 0:02:54.1]} 6... cxd4 {[%clk
0:03:00.5]} 7. Nxd4 {[%clk 0:02:49.5]} 7... Nc6 {[%clk 0:03:00]} 8. O-O {[%clk
0:02:48.8]} 8... d5 {[%clk 0:03:00]} 9. cxd5 {[%clk 0:02:38.2]} 9... Nxd5 {[%clk
0:03:00.9]} 10. Nxd5 {[%clk 0:02:22]} 10... Qxd5 {[%clk 0:03:01.8]} 11. Bf3
{[%clk 0:02:18.2]} 11... Qc5 {[%clk 0:03:01.7]} 12. Nxc6 {[%clk 0:02:16]} 12...
bxc6 {[%clk 0:03:02.6]} 13. Bd2 {[%clk 0:02:00.3]} 13... Bxb2 {[%clk 0:02:52.2]}
14. Rb1 {[%clk 0:01:59.4]} 14... Bg7 {[%clk 0:02:20.6]} 15. Bb4 {[%clk
0:01:49.8]} 15... Qe5 {[%clk 0:02:16.6]} 16. Bxc6 {[%clk 0:01:36.8]} 16... Rb8
{[%clk 0:02:16.6]} 17. Qa4 {[%clk 0:01:25.9]} 17... Bf5 {[%clk 0:02:12]} 18. e4
{[%clk 0:01:12.1]} 18... Bxe4 {[%clk 0:01:59.6]} 19. Rfe1 {[%clk 0:01:07.6]}
19... Bxc6 {[%clk 0:01:47.2]} 20. Qxc6 {[%clk 0:00:51.2]} 20... Rxb4 {[%clk
0:01:46.6]} 0-1

[Event "Late-Titled-Tuesday-Blitz-May-14-2024"]
[Site "Chess.com"]
[Date "2024.05.14"]
[Round "5"]
[White "Dedic8"]
[Black "MagnusCarlsen"]
[Result "1-0"]
[WhiteElo "2927"]
[BlackElo "3207"]
[TimeControl "180+1"]
[EndTime "14:53:05 PDT"]
[Termination "Dedic8 won by resignation"]

1. d4 {[%clk 0:03:00.9]} 1... Nf6 {[%clk 0:02:54.9]} 2. c4 {[%clk 0:03:00.9]}
2... d6 {[%clk 0:02:52.7]} 3. Nc3 {[%clk 0:03:00.1]} 3... e5 {[%clk 0:02:51.6]}
4. Nf3 {[%clk 0:02:57]} 4... Nbd7 {[%clk 0:02:51.3]} 5. e4 {[%clk 0:02:55.6]}
5... g6 {[%clk 0:02:50.9]} 6. h3 {[%clk 0:02:55]} 6... Bg7 {[%clk 0:02:50.5]} 7.
Be3 {[%clk 0:02:54.5]} 7... exd4 {[%clk 0:02:43.5]} 8. Nxd4 {[%clk 0:02:54.5]}
8... O-O {[%clk 0:02:43.2]} 9. Qd2 {[%clk 0:02:51.1]} 9... Re8 {[%clk 0:02:43]}
10. f3 {[%clk 0:02:51.6]} 10... c6 {[%clk 0:02:43.1]} 11. O-O-O {[%clk 0:02:52]}
11... d5 {[%clk 0:02:42.6]} 12. exd5 {[%clk 0:02:49.2]} 12... cxd5 {[%clk
0:02:42.1]} 13. Bh6 {[%clk 0:02:48.2]} 13... dxc4 {[%clk 0:02:28.9]} 14. Bxc4
{[%clk 0:02:45]} 14... Qc7 {[%clk 0:02:22.6]} 15. Bxf7+ {[%clk 0:02:09.7]} 15...
Kxf7 {[%clk 0:02:20.2]} 16. Nb5 {[%clk 0:02:10]} 16... Qc6 {[%clk 0:02:13.8]}
17. Nd6+ {[%clk 0:02:09.7]} 17... Kg8 {[%clk 0:02:13.7]} 18. Nxe8 {[%clk
0:02:09.1]} 18... Nxe8 {[%clk 0:02:10.7]} 19. Bxg7 {[%clk 0:02:05.4]} 19... Kxg7
{[%clk 0:02:02.4]} 20. Rhe1 {[%clk 0:01:58.9]} 20... Ndf6 {[%clk 0:01:59.2]} 21.
Re7+ {[%clk 0:01:53.7]} 21... Kf8 {[%clk 0:01:40.8]} 22. Rde1 {[%clk 0:01:53.7]}
22... Bd7 {[%clk 0:01:25.5]} 23. g4 {[%clk 0:01:40.4]} 23... Qd6 {[%clk
0:00:55.7]} 24. Rxe8+ {[%clk 0:01:37]} 1-0

[Event "Late-Titled-Tuesday-Blitz-May-14-2024"]
[Site "Chess.com"]
[Date "2024.05.14"]
[Round "5"]
[White "JM05C"]
[Black "Umumba_FM"]
[Result "0-1"]
[WhiteElo "2510"]
[BlackElo "2678"]
[TimeControl "180+1"]
[EndTime "14:53:17 PDT"]
[Termination "Umumba_FM won by checkmate"]

1. Nf3 {[%clk 0:02:58.9]} 1... Nc6 {[%clk 0:02:56.3]} 2. e4 {[%clk 0:02:57.7]}
2... f5 {[%clk 0:02:55.7]} 3. exf5 {[%clk 0:02:54.2]} 3... d5 {[%clk 0:02:56]}
4. d4 {[%clk 0:02:54.5]} 4... Bxf5 {[%clk 0:02:56.4]} 5. Bd3 {[%clk 0:02:54.1]}
5... Bg4 {[%clk 0:02:56.6]} 6. c3 {[%clk 0:02:51]} 6... e5 {[%clk 0:02:56.4]} 7.
dxe5 {[%clk 0:02:44.2]} 7... Nxe5 {[%clk 0:02:57.3]} 8. Qe2 {[%clk 0:02:28.1]}
8... Bd6 {[%clk 0:02:57.5]} 9. Bf4 {[%clk 0:02:20.9]} 9... Bxf3 {[%clk
0:02:57.4]} 10. gxf3 {[%clk 0:02:19.6]} 10... Qf6 {[%clk 0:02:58]} 11. Bxe5
{[%clk 0:02:18.3]} 11... Bxe5 {[%clk 0:02:58.6]} 12. Nd2 {[%clk 0:02:18.8]}
12... O-O-O {[%clk 0:02:55.6]} 13. O-O-O {[%clk 0:02:15.8]} 13... Ne7 {[%clk
0:02:51.6]} 14. Rhe1 {[%clk 0:02:11.8]} 14... Nc6 {[%clk 0:02:51.5]} 15. Bb5
{[%clk 0:02:09]} 15... Bxh2 {[%clk 0:02:49.8]} 16. Qe6+ {[%clk 0:01:58.6]} 16...
Qxe6 {[%clk 0:02:49.7]} 17. Rxe6 {[%clk 0:01:59.5]} 17... Rd6 {[%clk 0:02:50.3]}
18. Rxd6 {[%clk 0:01:58.6]} 18... Bxd6 {[%clk 0:02:51.2]} 19. Bxc6 {[%clk
0:01:56.5]} 19... bxc6 {[%clk 0:02:52.1]} 20. Nb3 {[%clk 0:01:57]} 20... h5
{[%clk 0:02:46.1]} 21. Nd4 {[%clk 0:01:55.9]} 21... Kd7 {[%clk 0:02:45.6]} 22.
Kd2 {[%clk 0:01:54.3]} 22... h4 {[%clk 0:02:45.2]} 23. Nf5 {[%clk 0:01:53.7]}
23... g6 {[%clk 0:02:43.6]} 24. Ne3 {[%clk 0:01:51.3]} 24... h3 {[%clk
0:02:42.1]} 25. Ke2 {[%clk 0:01:48.7]} 25... h2 {[%clk 0:02:40.4]} 26. Rh1
{[%clk 0:01:49.1]} 26... Bf4 {[%clk 0:02:33.7]} 27. Ng4 {[%clk 0:01:47.9]} 27...
Kd6 {[%clk 0:02:29.4]} 28. Kf1 {[%clk 0:01:39.1]} 28... Rb8 {[%clk 0:02:17.6]}
29. b3 {[%clk 0:01:36.6]} 29... Rh8 {[%clk 0:02:04.7]} 30. Kg2 {[%clk
0:01:35.2]} 30... c5 {[%clk 0:02:05.3]} 31. Rd1 {[%clk 0:01:17.8]} 31... c6
{[%clk 0:02:00.7]} 32. Ne3 {[%clk 0:01:12.7]} 32... Kc7 {[%clk 0:01:36]} 33. Nf1
{[%clk 0:01:05.5]} 33... h1=Q# {[%clk 0:01:34.8]} 0-1

[Event "Late-Titled-Tuesday-Blitz-May-14-2024"]
[Site "Chess.com"]
[Date "2024.05.14"]
[Round "5"]
[White "KirAk47"]
[Black "Mikhail_Golubev"]
[Result "0-1"]
[WhiteElo "2442"]
[BlackElo "2609"]
[TimeControl "180+1"]
[EndTime "14:53:47 PDT"]
[Termination "Mikhail_Golubev won by checkmate"]

1. d4 {[%clk 0:03:00.9]} 1... Nf6 {[%clk 0:02:59.3]} 2. Nf3 {[%clk 0:02:52.2]}
2... d6 {[%clk 0:02:59.3]} 3. c4 {[%clk 0:02:42.9]} 3... g6 {[%clk 0:02:58.7]}
4. Nc3 {[%clk 0:02:40.9]} 4... Bg7 {[%clk 0:02:59.2]} 5. e4 {[%clk 0:02:39.3]}
5... O-O {[%clk 0:02:59.2]} 6. Be2 {[%clk 0:02:37.2]} 6... e5 {[%clk 0:02:59.1]}
7. O-O {[%clk 0:02:34.8]} 7... h6 {[%clk 0:02:59.1]} 8. Be3 {[%clk 0:02:28.9]}
8... Ng4 {[%clk 0:02:56.5]} 9. Bc1 {[%clk 0:02:26.2]} 9... Nf6 {[%clk
0:02:56.1]} 10. Re1 {[%clk 0:02:17.2]} 10... Nbd7 {[%clk 0:02:50.8]} 11. Bf1
{[%clk 0:02:14.2]} 11... Re8 {[%clk 0:02:49.1]} 12. b3 {[%clk 0:02:07.9]} 12...
exd4 {[%clk 0:02:41.1]} 13. Nxd4 {[%clk 0:02:06]} 13... Nc5 {[%clk 0:02:40.5]}
14. f3 {[%clk 0:02:03.1]} 14... Nh5 {[%clk 0:02:35.3]} 15. Bb2 {[%clk
0:02:01.5]} 15... Qh4 {[%clk 0:02:15]} 16. Nd5 {[%clk 0:01:50.4]} 16... Be5
{[%clk 0:02:06.3]} 17. g3 {[%clk 0:01:43.1]} 17... Nxg3 {[%clk 0:01:39.7]} 18.
hxg3 {[%clk 0:01:44]} 18... Qxg3+ {[%clk 0:01:40]} 19. Bg2 {[%clk 0:01:43.9]}
19... Bh3 {[%clk 0:01:35.5]} 20. Ne3 {[%clk 0:01:21.8]} 20... Qh2+ {[%clk
0:01:35.1]} 21. Kf1 {[%clk 0:01:15.4]} 21... Bg3 {[%clk 0:01:32.5]} 22. Qc2
{[%clk 0:01:07.6]} 22... Nd3 {[%clk 0:01:03.9]} 23. Qxd3 {[%clk 0:01:01.6]}
23... Bxg2+ {[%clk 0:01:02.1]} 24. Nxg2 {[%clk 0:01:01.4]} 24... Qh1+ {[%clk
0:01:02.3]} 25. Ke2 {[%clk 0:01:01]} 25... Qxg2+ {[%clk 0:01:02.7]} 26. Ke3
{[%clk 0:00:53.7]} 26... Qf2# {[%clk 0:00:58.4]} 0-1

[Event "Late-Titled-Tuesday-Blitz-May-14-2024"]
[Site "Chess.com"]
[Date "2024.05.14"]
[Round "5"]
[White "Dexter_Dyke"]
[Black "Walter_White_Poland"]
[Result "1-0"]
[WhiteElo "2596"]
[BlackElo "2407"]
[TimeControl "180+1"]
[EndTime "14:53:53 PDT"]
[Termination "Dexter_Dyke won on time"]

1. e4 {[%clk 0:03:00.3]} 1... c5 {[%clk 0:02:56.6]} 2. Nf3 {[%clk 0:03:00]} 2...
e6 {[%clk 0:02:55.4]} 3. d4 {[%clk 0:03:00.3]} 3... cxd4 {[%clk 0:02:54.9]} 4.
c3 {[%clk 0:03:01.2]} 4... d5 {[%clk 0:02:43.8]} 5. exd5 {[%clk 0:02:59.9]} 5...
Qxd5 {[%clk 0:02:34]} 6. cxd4 {[%clk 0:02:59.7]} 6... Nf6 {[%clk 0:02:32.1]} 7.
Nc3 {[%clk 0:02:59.9]} 7... Bb4 {[%clk 0:02:31.9]} 8. Bd3 {[%clk 0:02:59.9]}
8... O-O {[%clk 0:02:23.3]} 9. O-O {[%clk 0:03:00.3]} 9... Qh5 {[%clk
0:01:42.5]} 10. Ne2 {[%clk 0:02:54.7]} 10... Nc6 {[%clk 0:01:34.8]} 11. Bg5
{[%clk 0:02:53.9]} 11... Bd6 {[%clk 0:01:14.5]} 12. Bxf6 {[%clk 0:02:43.8]}
12... gxf6 {[%clk 0:01:13.5]} 13. Ng3 {[%clk 0:02:44.4]} 13... Bxg3 {[%clk
0:00:56.2]} 14. fxg3 {[%clk 0:02:39]} 14... Rd8 {[%clk 0:00:43.7]} 15. Be4
{[%clk 0:02:37.4]} 15... f5 {[%clk 0:00:20.1]} 16. Bxc6 {[%clk 0:02:35.5]} 16...
bxc6 {[%clk 0:00:21]} 17. Qa4 {[%clk 0:02:31.1]} 17... Rb8 {[%clk 0:00:16.3]}
18. b3 {[%clk 0:02:25.5]} 18... Bd7 {[%clk 0:00:14.6]} 19. Ne5 {[%clk
0:02:24.2]} 19... Be8 {[%clk 0:00:12.4]} 20. g4 {[%clk 0:02:16]} 20... fxg4
{[%clk 0:00:10.5]} 21. Qxa7 {[%clk 0:02:15.7]} 21... Rb4 {[%clk 0:00:07.6]} 22.
Rf4 {[%clk 0:02:06.6]} 22... g3 {[%clk 0:00:04.1]} 23. hxg3 {[%clk 0:02:01.1]}
23... f6 {[%clk 0:00:03.9]} 24. Rxf6 {[%clk 0:01:52.7]} 24... Rbxd4 {[%clk
0:00:03.1]} 25. Raf1 {[%clk 0:01:48.6]} 1-0

[Event "Late-Titled-Tuesday-Blitz-May-14-2024"]
[Site "Chess.com"]
[Date "2024.05.14"]
[Round "5"]
[White "Agibileg"]
[Black "nabukatnezarr"]
[Result "1-0"]
[WhiteElo "2874"]
[BlackElo "2625"]
[TimeControl "180+1"]
[EndTime "14:53:57 PDT"]
[Termination "Agibileg won by checkmate"]

1. d4 {[%clk 0:02:59.8]} 1... Nf6 {[%clk 0:02:57.5]} 2. c4 {[%clk 0:02:59.9]}
2... e6 {[%clk 0:02:57.6]} 3. Nc3 {[%clk 0:03:00.2]} 3... Bb4 {[%clk 0:02:57.3]}
4. a3 {[%clk 0:03:00.5]} 4... Bxc3+ {[%clk 0:02:53.6]} 5. bxc3 {[%clk
0:03:01.4]} 5... O-O {[%clk 0:02:49.8]} 6. f3 {[%clk 0:03:01.4]} 6... d5 {[%clk
0:02:49.7]} 7. cxd5 {[%clk 0:03:02.3]} 7... exd5 {[%clk 0:02:48]} 8. e3 {[%clk
0:03:02.4]} 8... Bf5 {[%clk 0:02:22.2]} 9. Ne2 {[%clk 0:03:02]} 9... Nc6 {[%clk
0:02:19.1]} 10. g4 {[%clk 0:03:02]} 10... Bd7 {[%clk 0:02:02.1]} 11. Ng3 {[%clk
0:02:59.9]} 11... Na5 {[%clk 0:01:55.7]} 12. Bd3 {[%clk 0:02:59.8]} 12... a6
{[%clk 0:01:47.4]} 13. O-O {[%clk 0:02:59]} 13... Bb5 {[%clk 0:01:43.9]} 14. Ra2
{[%clk 0:02:56.6]} 14... Bxd3 {[%clk 0:01:38.4]} 15. Qxd3 {[%clk 0:02:57.5]}
15... Re8 {[%clk 0:01:35.2]} 16. Rg2 {[%clk 0:02:57.8]} 16... c5 {[%clk
0:01:30.5]} 17. e4 {[%clk 0:02:54.8]} 17... dxe4 {[%clk 0:01:21.8]} 18. fxe4
{[%clk 0:02:55.7]} 18... Nd7 {[%clk 0:00:56.2]} 19. Qf3 {[%clk 0:02:47.7]} 19...
Rf8 {[%clk 0:00:53]} 20. g5 {[%clk 0:02:44]} 20... Qb6 {[%clk 0:00:45.7]} 21.
Nf5 {[%clk 0:02:42.8]} 21... Rae8 {[%clk 0:00:33.6]} 22. Bf4 {[%clk 0:02:32.7]}
22... Nc4 {[%clk 0:00:31.5]} 23. Kh1 {[%clk 0:02:31.3]} 23... Kh8 {[%clk
0:00:31.7]} 24. Qd3 {[%clk 0:02:14.2]} 24... Nxa3 {[%clk 0:00:22.7]} 25. Bd6
{[%clk 0:02:10.6]} 25... Rg8 {[%clk 0:00:20.7]} 26. e5 {[%clk 0:02:10.4]} 26...
cxd4 {[%clk 0:00:17.1]} 27. cxd4 {[%clk 0:02:11.3]} 27... Nb5 {[%clk 0:00:17.5]}
28. Ne7 {[%clk 0:02:05.5]} 28... Rgf8 {[%clk 0:00:10.3]} 29. Rf3 {[%clk
0:02:01.9]} 29... Nxd6 {[%clk 0:00:08.5]} 30. Qxh7+ {[%clk 0:02:01.3]} 30...
Kxh7 {[%clk 0:00:01.9]} 31. Rh3# {[%clk 0:02:02.2]} 1-0